bitfinex-derivatives/quotes_BTCF0:USTF0_20241025
["timestamp","ask_amount","ask_price","bid_price","bid_amount"]
[1729828202911,0.0735,68057.0,68046.0,0.13145366]
[1729828202912,0.073506,68052.0,68046.0,0.18143742]
[1729828203106,0.04998376,68051.0,68046.0,0.18143742]
[1729828203418,0.52846,68057.0,68046.0,0.18143742]
[1729828203419,0.073511,68047.0,68046.0,0.18143742]
[1729828203616,0.073511,68047.0,68046.0,0.19532097]
[1729828203811,0.073511,68047.0,68046.0,0.14533721]
[1729828207816,0.3608,68051.0,68046.0,0.29528849]
[1729828207817,0.073507,68051.0,68046.0,0.29528849]
[1729828208120,0.073507,68051.0,68050.0,0.17347552]
[1729828208911,0.3608,68057.0,68050.0,0.09996752]
[1729828209223,0.073496,68061.0,68060.0,0.073497]
[1729828209410,0.073496,68061.0,68060.0,0.17346452]
[1729828211528,0.073496,68061.0,68060.0,0.09996752]
[1729828212723,0.073496,68061.0,68060.0,0.10732178]
[1729828213424,0.073496,68061.0,68060.0,0.18081878]
[1729828214921,0.073496,68061.0,68060.0,0.18541519]
[1729828215323,0.073492,68065.0,68060.0,0.16190195]
[1729828215517,0.073492,68065.0,68057.0,0.3932]
[1729828215518,0.073492,68065.0,68064.0,0.17346052]
[1729828215821,0.073492,68065.0,68064.0,0.18541119]
[1729828216327,0.073488,68069.0,68064.0,0.11191819]
[1729828216511,0.073488,68069.0,68068.0,0.073489]
[1729828216822,0.073488,68069.0,68068.0,0.13542343]
[1729828218120,0.073488,68069.0,68068.0,0.07808541]
[1729828218627,0.073488,68069.0,68068.0,0.12806917]
[1729828218822,0.073476,68080.0,68068.0,0.12806917]
[1729828218823,0.073481,68075.0,68073.0,0.073483]
[1729828219122,0.073477,68079.0,68078.0,0.073478]
[1729828219325,0.073477,68079.0,68078.0,0.17344552]
[1729828219524,0.073477,68079.0,68078.0,0.23217127]
[1729828219826,0.073477,68079.0,68078.0,0.17344552]
[1729828220323,0.073477,68079.0,68078.0,0.17804067]
[1729828221920,0.12345676,68083.0,68081.0,0.073474]
[1729828222114,0.12345576,68083.0,68082.0,0.05876728]
[1729828222319,0.073472,68083.0,68082.0,0.05876728]
[1729828222628,0.073473,68082.0,68081.0,0.09996752]
[1729828222928,0.073473,68082.0,68081.0,0.17344152]
[1729828223127,0.3608,68089.0,68085.0,0.07347]
[1729828223320,0.073469,68086.0,68085.0,0.14698785]
[1729828223520,0.073469,68086.0,68085.0,0.19696846]
[1729828223726,0.073469,68086.0,68085.0,0.28636909]
[1729828224220,0.073469,68086.0,68085.0,0.33635195]
[1729828224425,0.073469,68086.0,68085.0,0.17343752]
[1729828224819,0.073469,68086.0,68085.0,0.17803222]
[1729828225329,0.073469,68086.0,68085.0,0.10456222]
[1729828226923,0.073469,68086.0,68085.0,0.1484884]
[1729828227127,0.12345276,68086.0,68085.0,0.04392618]
[1729828227328,0.17343652,68086.0,68085.0,0.04392618]
[1729828227925,0.07347,68085.0,68084.0,0.04392618]
[1729828228525,0.073471,68084.0,68083.0,0.09996752]
[1729828229540,0.073471,68084.0,68083.0,0.17343952]
[1729828229829,0.073471,68084.0,68083.0,0.09996752]
[1729828233124,0.073471,68084.0,68083.0,0.26225315]
[1729828233937,0.073471,68084.0,68083.0,0.18904285]
[1729828234939,0.073471,68084.0,68083.0,0.27711974]
[1729828235145,0.073471,68084.0,68083.0,0.35059174]
[1729828237530,0.073471,68084.0,68083.0,0.08907533]
[1729828237734,0.073471,68084.0,68083.0,0.17704444]
[1729828237933,0.12345476,68084.0,68083.0,0.17704444]
[1729828238544,0.12345476,68084.0,68083.0,0.17705538]
[1729828238743,0.12345476,68084.0,68083.0,0.08907533]
[1729828239540,0.12345476,68084.0,68083.0,0.17705538]
[1729828239742,0.12345476,68084.0,68083.0,0.08907533]
[1729828240537,0.12345476,68084.0,68083.0,0.17705538]
[1729828241041,0.073473,68082.0,68081.0,0.01415229]
[1729828241244,0.073481,68075.0,68068.0,0.04399865]
[1729828241445,0.04998376,68074.0,68067.0,0.47828765]
[1729828241642,0.12347276,68068.0,68067.0,0.073489]
[1729828241843,0.17345652,68068.0,68067.0,0.073489]
[1729828242344,0.073489,68068.0,68067.0,0.073489]
[1729828243248,0.073489,68068.0,68063.0,0.15249656]
[1729828243249,0.07624828,68071.0,68063.0,0.22598956]
[1729828243449,0.073493,68064.0,68063.0,0.073493]
[1729828244343,0.07624828,68067.0,68060.0,0.0304]
[1729828244547,0.07624828,68070.0,68066.0,0.073491]
[1729828244851,0.07349,68067.0,68066.0,0.073491]
[1729828245048,0.07624828,68070.0,68063.0,0.15249656]
[1729828245253,0.073493,68065.0,68063.0,0.15249656]
[1729828245643,0.073493,68065.0,68063.0,0.22598956]
[1729828245844,0.07624828,68064.0,68060.0,0.04445307]
[1729828246050,0.07624828,68063.0,68060.0,0.04445307]
[1729828246349,0.073496,68061.0,68060.0,0.01405307]
[1729828246542,0.073497,68060.0,68059.0,0.3608]
[1729828246743,0.22599356,68060.0,68059.0,0.3608]
[1729828247646,0.22599356,68060.0,68059.0,0.434298]
[1729828247647,0.073497,68060.0,68059.0,0.434298]
[1729828247953,0.073493,68065.0,68064.0,0.073493]
[1729828248954,0.073493,68065.0,68064.0,0.25154505]
[1729828249453,0.073493,68065.0,68064.0,0.163565]
[1729828253747,0.07624828,68067.0,68066.0,0.073491]
[1729828253953,0.07624828,68067.0,68066.0,0.163563]
[1729828254452,0.14973828,68067.0,68066.0,0.163563]
[1729828255944,0.14973828,68067.0,68066.0,0.073491]
[1729828256447,0.07349,68067.0,68066.0,0.073491]
[1729828257139,0.07349,68067.0,68066.0,0.07808703]
[1729828257847,0.07349,68067.0,68066.0,0.073491]
[1729828258254,0.07349,68067.0,68066.0,0.07808703]
[1729828259457,0.07349,68067.0,68066.0,0.09191537]
[1729828262251,0.073485,68072.0,68066.0,0.09467265]
[1729828262452,0.073485,68072.0,68071.0,0.073485]
[1729828263358,0.03,68080.0,68071.0,0.15709216]
[1729828263658,0.07348,68076.0,68075.0,0.14972828]
[1729828263855,0.07348,68076.0,68075.0,0.0780756]
[1729828264062,0.07348,68076.0,68075.0,0.25569584]
[1729828264351,0.12351298,68076.0,68075.0,0.25569584]
[1729828264557,0.17354596,68076.0,68075.0,0.25569584]
[1729828265560,0.17354596,68076.0,68075.0,0.16771579]
[1729828266446,0.17354596,68076.0,68075.0,0.09423579]
[1729828266646,0.17354596,68076.0,68075.0,0.08964019]
[1729828266850,0.17354596,68076.0,68075.0,0.17760927]
[1729828267257,0.17354596,68076.0,68075.0,0.08964019]
[1729828267561,0.17354596,68076.0,68075.0,0.16312119]
[1729828267862,0.05003298,68076.0,68075.0,0.16771665]
[1729828268066,0.12351298,68076.0,68075.0,0.16771665]
[1729828268357,0.05003298,68076.0,68075.0,0.27471998]
[1729828269755,0.05003298,68076.0,68075.0,0.27471997]
[1729828269951,0.05003298,68076.0,68075.0,0.27012452]
[1729828271055,0.07348,68076.0,68075.0,0.16312119]
[1729828271257,0.07348,68076.0,68075.0,0.1772167]
[1729828271658,0.07348,68076.0,68075.0,0.17749527]
[1729828272157,0.12351298,68076.0,68075.0,0.17749527]
[1729828272547,0.17354596,68076.0,68075.0,0.17749527]
[1729828274354,0.17354596,68076.0,68075.0,0.08757651]
[1729828274555,0.17354596,68076.0,68075.0,0.17736592]
[1729828274963,0.17354596,68076.0,68075.0,0.10388492]
[1729828277255,0.12351298,68076.0,68075.0,0.17736592]
[1729828278265,0.12351298,68076.0,68075.0,0.10388492]
[1729828278963,0.12351298,68076.0,68075.0,0.01409551]
[1729828279165,0.05003298,68076.0,68072.0,0.073483]
[1729828279467,0.073483,68074.0,68073.0,0.01194861]
[1729828280265,0.05003298,68076.0,68072.0,0.073483]
[1729828280569,0.073483,68073.0,68072.0,0.073483]
[1729828280769,0.073483,68073.0,68072.0,0.08543192]
[1729828282973,0.073483,68073.0,68072.0,0.073483]
[1729828284866,0.073483,68073.0,68072.0,0.08083602]
[1729828285067,0.073483,68073.0,68072.0,0.07807864]
[1729828285975,0.073483,68073.0,68072.0,0.27519382]
[1729828286381,0.073483,68073.0,68072.0,0.2751938]
[1729828286685,0.073483,68073.0,68072.0,0.28254676]
[1729828286981,0.073483,68073.0,68072.0,0.2751938]
[1729828287173,0.073483,68073.0,68072.0,0.28254679]
[1729828288077,0.073483,68073.0,68072.0,0.2751938]
[1729828288683,0.073483,68073.0,68072.0,0.2747871]
[1729828289394,0.073483,68073.0,68072.0,0.2013041]
[1729828289694,0.48431598,68073.0,68072.0,0.19670848]
[1729828289889,0.51461598,68073.0,68072.0,0.19670848]
[1729828290194,0.57551598,68073.0,68072.0,0.19670848]
[1729828290595,0.525483,68073.0,68072.0,0.19670848]
[1729828291190,0.57551598,68073.0,68072.0,0.17789414]
[1729828291386,1.01623598,68073.0,68072.0,0.08974084]
[1729828291588,1.03055679,68073.0,68072.0,0.08974084]
[1729828291992,1.03055679,68073.0,68072.0,0.16321262]
[1729828292295,1.03055679,68073.0,68072.0,0.07347178]
[1729828292898,1.03055679,68073.0,68055.0,0.0312]
[1729828292899,0.073485,68071.0,68070.0,0.07347178]
[1729828293098,0.12351798,68071.0,68070.0,0.07347178]
[1729828293287,0.05003298,68070.0,68069.0,0.07347178]
[1729828293487,0.12351898,68070.0,68069.0,0.07347178]
[1729828294082,0.12351898,68070.0,68062.0,0.0881533]
[1729828294083,0.073494,68063.0,68062.0,0.04405888]
[1729828294293,0.12352798,68062.0,68061.0,0.04405888]
[1729828294597,0.12352798,68062.0,68061.0,0.04865531]
[1729828294892,0.12352798,68062.0,68060.0,0.04405888]
[1729828295092,0.05003298,68061.0,68060.0,0.04405888]
[1729828295299,0.05003298,68061.0,68060.0,0.04865531]
[1729828295300,0.12352898,68061.0,68060.0,0.04865531]
[1729828296183,0.12352898,68061.0,68060.0,0.00459643]
[1729828297691,0.0735,68058.0,68056.0,0.04405888]
[1729828297890,0.0735,68058.0,68057.0,0.00459644]
[1729828298189,0.12353298,68058.0,68057.0,0.00459644]
[1729828298584,0.0735,68058.0,68057.0,0.00459644]
[1729828300891,0.0735,68058.0,68057.0,0.0045965]
[1729828301099,0.0735,68058.0,68057.0,0.2746061]
[1729828301394,0.05003298,68061.0,68057.0,0.2746061]
[1729828301594,0.073495,68062.0,68059.0,0.10006596]
[1729828301791,0.073495,68062.0,68060.0,0.09424661]
[1729828301989,0.073495,68062.0,68061.0,0.09424658]
[1729828302687,0.073495,68062.0,68061.0,0.09419652]
[1729828306600,0.073495,68062.0,68061.0,0.08960005]
[1729828308497,0.073495,68062.0,68061.0,0.16294877]
[1729828308498,0.12352798,68062.0,68061.0,0.16294877]
[1729828308694,0.15352798,68062.0,68061.0,0.08960005]
[1729828308893,0.10006596,68061.0,68058.0,0.07335091]
[1729828309091,0.073505,68053.0,68052.0,0.04401243]
[1729828309295,0.12353798,68053.0,68052.0,0.00459705]
[1729828309500,0.12353798,68053.0,68052.0,0.04860948]
[1729828309901,0.12353798,68053.0,68052.0,0.00459705]
[1729828310895,0.12353798,68053.0,68052.0,0.00659705]
[1729828311294,0.12353798,68053.0,68052.0,0.05059776]
[1729828312395,0.12353798,68053.0,68052.0,0.05059741]
[1729828315201,0.12353798,68053.0,68052.0,0.04600036]
[1729828316000,0.12353798,68053.0,68052.0,0.09182549]
[1729828316601,0.12353798,68053.0,68052.0,0.19890799]
[1729828317095,0.12353798,68053.0,68052.0,0.19891964]
[1729828320010,0.12353798,68053.0,68052.0,0.09643417]
[1729828320403,0.12353798,68053.0,68052.0,0.09183717]
[1729828321204,0.12353798,68053.0,68052.0,0.17993984]
[1729828321602,0.12353798,68053.0,68052.0,0.09183717]
[1729828323513,0.12353798,68053.0,68052.0,0.08983717]
[1729828325104,0.12353798,68053.0,68052.0,0.08984056]
[1729828331803,0.12353798,68053.0,68052.0,0.08986802]
[1729828334710,0.12353798,68053.0,68052.0,0.08995546]
[1729828335312,0.073508,68050.0,68049.0,0.08810267]
[1729828335512,0.48434098,68050.0,68049.0,0.17812689]
[1729828335720,0.48434098,68050.0,68049.0,0.09002422]
[1729828336211,0.48434098,68050.0,68049.0,0.17813262]
[1729828337815,0.48434098,68050.0,68049.0,0.19233875]
[1729828338611,0.48434098,68050.0,68049.0,0.10423035]
[1729828338820,0.48434098,68050.0,68049.0,0.09002422]
[1729828341814,0.434308,68050.0,68049.0,0.1400572]
[1729828342018,0.434308,68050.0,68049.0,0.24718211]
[1729828342208,0.434308,68050.0,68049.0,0.28018211]
[1729828342209,0.073508,68050.0,68049.0,0.28018211]
[1729828342715,0.073508,68050.0,68049.0,0.28477931]
[1729828343110,0.073508,68050.0,68049.0,0.35828831]
[1729828343308,0.073508,68050.0,68049.0,0.46104783]
[1729828343510,0.073508,68050.0,68049.0,0.35828831]
[1729828343822,0.073508,68050.0,68049.0,0.58552362]
[1729828344121,0.073508,68050.0,68049.0,0.58531877]
[1729828344509,0.073508,68050.0,68049.0,0.58072157]
[1729828344716,0.073508,68050.0,68049.0,0.58531861]
[1729828345612,0.073508,68050.0,68049.0,0.3581645]
[1729828345818,0.073508,68050.0,68049.0,0.35356746]
[1729828346015,0.073508,68050.0,68049.0,0.35816448]
[1729828347815,0.073508,68050.0,68049.0,0.28465548]
[1729828348513,0.073508,68050.0,68049.0,0.28465549]
[1729828353125,0.073503,68055.0,68049.0,0.28465549]
[1729828353315,0.073503,68055.0,68054.0,0.10006596]
[1729828353627,0.12456,68071.0,68054.0,0.10006596]
[1729828353628,0.05003298,68067.0,68054.0,0.30168847]
[1729828353820,0.05003298,68069.0,68066.0,0.05003298]
[1729828354023,0.073489,68068.0,68067.0,0.12158546]
[1729828354227,0.073489,68068.0,68067.0,0.20970947]
[1729828354522,0.073489,68068.0,68067.0,0.12158546]
[1729828356924,0.073489,68068.0,68067.0,0.16325036]
[1729828357127,0.073489,68068.0,68057.0,0.3608]
[1729828357128,0.07349,68067.0,68066.0,0.0733649]
[1729828357325,0.12352398,68066.0,68065.0,0.0733649]
[1729828357529,0.12352398,68066.0,68065.0,0.16292174]
[1729828358532,0.12352398,68066.0,68065.0,0.0733649]
[1729828359226,0.12352498,68065.0,68064.0,0.0733649]
[1729828359424,0.12352498,68065.0,68062.0,0.0733649]
[1729828359425,0.05003298,68064.0,68062.0,0.0733649]
[1729828359640,0.073495,68062.0,68061.0,0.0733649]
[1729828359830,0.073498,68059.0,68058.0,0.0733649]
[1729828360018,0.05003298,68059.0,68057.0,0.0733649]
[1729828360222,0.12353198,68058.0,68057.0,0.0733649]
[1729828360529,0.12353198,68058.0,68057.0,0.16323584]
[1729828360530,0.48433198,68058.0,68057.0,0.16323584]
[1729828360827,0.073503,68055.0,68054.0,0.0733649]
[1729828361030,0.073503,68055.0,68053.0,0.0733649]
[1729828361031,0.12353698,68054.0,68053.0,0.0733649]
[1729828361226,0.12353698,68054.0,68053.0,0.09008524]
[1729828362134,0.12353698,68054.0,68053.0,0.07337045]
[1729828363230,0.05003298,68053.0,68052.0,0.07337045]
[1729828363533,0.12353798,68053.0,68052.0,0.16350201]
[1729828367030,0.12353798,68053.0,68052.0,0.09013156]
[1729828367536,0.12353798,68053.0,68052.0,0.09004251]
[1729828367726,0.073508,68050.0,68049.0,0.01408291]
[1729828367928,0.48434098,68050.0,68049.0,0.08999556]
[1729828371934,0.53437396,68050.0,68049.0,0.08999556]
[1729828372530,0.53437396,68050.0,68049.0,0.09459278]
[1729828372823,0.53437396,68050.0,68049.0,0.08999556]
[1729828373027,0.53437396,68050.0,68049.0,0.20183009]
[1729828373238,0.53437396,68050.0,68049.0,0.08999556]
[1729828374040,0.53437396,68050.0,68049.0,0.09459275]
[1729828375131,0.53437396,68050.0,68049.0,0.08999556]
[1729828377537,0.53437396,68050.0,68049.0,0.0900483]
[1729828377740,0.53437396,68050.0,68049.0,0.09464558]
[1729828378540,0.53437396,68050.0,68049.0,0.0900483]
[1729828378939,0.53437396,68050.0,68049.0,0.20192936]
[1729828378940,0.48434098,68050.0,68049.0,0.20192936]
[1729828379243,0.434308,68050.0,68049.0,0.27543836]
[1729828381142,0.434308,68050.0,68049.0,0.27532066]
[1729828381537,0.434308,68050.0,68049.0,0.27072337]
[1729828381746,0.434308,68050.0,68049.0,0.27532058]
[1729828384349,0.434308,68050.0,68049.0,0.16807784]
[1729828385342,0.434308,68050.0,68049.0,0.16348063]
[1729828385542,0.434308,68050.0,68049.0,0.27533299]
[1729828390644,0.3608,68050.0,68049.0,0.40013026]
[1729828391043,0.41083298,68058.0,68049.0,0.32662126]
[1729828391249,0.073504,68054.0,68053.0,0.10291484]
[1729828391555,0.073504,68054.0,68053.0,0.30486331]
[1729828391942,0.073504,68054.0,68053.0,0.42943248]
[1729828392848,0.073504,68054.0,68053.0,0.42943215]
[1729828393654,0.073504,68054.0,68053.0,0.20194814]
[1729828395354,0.073504,68054.0,68053.0,0.27527097]
[1729828396748,0.073504,68054.0,68053.0,0.20176597]
[1729828397853,0.073504,68054.0,68053.0,0.27527097]
[1729828398057,0.12353698,68054.0,68053.0,0.27527097]
[1729828398251,0.12353698,68054.0,68053.0,0.1971691]
[1729828398650,0.12353698,68054.0,68053.0,0.27527107]
[1729828399359,0.12353698,68054.0,68053.0,0.07810197]
[1729828401253,0.12353698,68054.0,68053.0,0.00459697]
[1729828403865,0.12353698,68054.0,68053.0,0.00459689]
[1729828405758,0.12353698,68054.0,68053.0,0.07810189]
[1729828406060,0.12353698,68054.0,68053.0,0.073505]
[1729828406359,0.073504,68054.0,68053.0,0.27055383]
[1729828407964,0.073504,68054.0,68053.0,0.27515072]
[1729828408166,0.073504,68054.0,68053.0,0.27055383]
[1729828409867,0.073504,68054.0,68053.0,0.27515067]
[1729828413065,0.073501,68057.0,68056.0,0.0735]
[1729828413263,0.073501,68057.0,68056.0,0.37521154]
[1729828413471,0.073501,68057.0,68056.0,0.32517856]
[1729828413666,0.073501,68057.0,68056.0,0.27514558]
[1729828416973,0.073501,68057.0,68056.0,0.28896263]
[1729828417673,0.073501,68057.0,68056.0,0.28896262]
[1729828421461,0.073501,68057.0,68056.0,0.09191379]
[1729828429477,0.073501,68057.0,68056.0,0.3922079]
[1729828429683,0.073501,68057.0,68056.0,0.28929306]
[1729828431392,0.073501,68057.0,68056.0,0.28469632]
[1729828431584,0.073501,68057.0,68056.0,0.38761116]
[1729828433087,0.073501,68057.0,68056.0,0.28469632]
[1729828433883,0.073501,68057.0,68056.0,0.51335018]
[1729828434183,0.073501,68057.0,68056.0,0.4166993]
[1729828434877,0.073501,68057.0,68056.0,0.3939283]
[1729828436889,0.073501,68057.0,68056.0,0.29100223]
[1729828438886,0.073501,68057.0,68056.0,0.21750223]
[1729828440883,0.139201,68057.0,68056.0,0.19908845]
[1729828442595,0.18923398,68057.0,68056.0,0.19908845]
[1729828444680,0.18923398,68057.0,68056.0,0.09082661]
[1729828445484,0.18923398,68057.0,68056.0,0.16435288]
[1729828445881,0.05003298,68056.0,68055.0,0.07352627]
[1729828446178,0.12353398,68056.0,68055.0,0.07352627]
[1729828446389,0.12353398,68056.0,68055.0,0.16426945]
[1729828446780,0.073506,68052.0,68051.0,0.07352627]
[1729828446986,0.12353898,68052.0,68051.0,0.07352627]
[1729828447293,0.12353998,68051.0,68050.0,0.07352627]
[1729828447592,0.073509,68049.0,68048.0,0.07352627]
[1729828447892,0.073509,68049.0,68048.0,0.07812357]
[1729828448389,0.073509,68049.0,68048.0,0.0045973]
[1729828448987,0.073509,68049.0,68048.0,0.07812357]
[1729828449291,0.073509,68049.0,68048.0,0.0045973]
[1729828449886,0.073509,68049.0,68013.0,0.12590934]
[1729828449887,0.05003298,68048.0,68044.0,0.07348597]
[1729828450084,0.073517,68042.0,68041.0,0.08778958]
[1729828450287,0.05003298,68041.0,68038.0,0.07348597]
[1729828450492,0.12355298,68039.0,68038.0,0.07348597]
[1729828450885,0.12355298,68039.0,68038.0,0.07808386]
[1729828451286,0.12355298,68039.0,68038.0,0.00459789]
[1729828451589,0.12355298,68039.0,68038.0,0.18419877]
[1729828452087,0.12355298,68039.0,68038.0,0.18619877]
[1729828452389,0.12355298,68039.0,68038.0,0.0948309]
[1729828453594,0.12355298,68039.0,68038.0,0.09023301]
[1729828454790,0.12355298,68039.0,68038.0,0.002]
[1729828459190,0.07352,68039.0,68038.0,0.002]
[1729828459491,0.07352,68039.0,68038.0,0.13015196]
[1729828459892,0.07352,68039.0,68038.0,0.30962916]
[1729828460194,0.07352,68039.0,68038.0,0.25959618]
[1729828460388,0.07352,68039.0,68038.0,0.09469383]
[1729828460995,0.07352,68039.0,68038.0,0.00659798]
[1729828462597,0.07352,68039.0,68038.0,0.002]
[1729828463200,0.07352,68039.0,68038.0,0.00659801]
[1729828464195,0.07352,68039.0,68038.0,0.002]
[1729828464399,0.07352,68039.0,68038.0,0.00659801]
[1729828464999,0.07352,68039.0,68038.0,0.18586864]
[1729828465495,0.07352,68039.0,68038.0,0.18586861]
[1729828466401,0.07352,68039.0,68038.0,0.09459931]
[1729828466894,0.07402,68039.0,68038.0,0.09459931]
[1729828467401,0.07402,68039.0,68038.0,0.16812031]
[1729828468198,0.07402,68039.0,68038.0,0.075521]
[1729828468597,0.17408596,68039.0,68038.0,0.075521]
[1729828469504,0.17408596,68039.0,68038.0,0.08011902]
[1729828470003,0.17408596,68039.0,68038.0,0.17144771]
[1729828470201,0.17408596,68039.0,68038.0,0.28031497]
[1729828470806,0.17408596,68039.0,68038.0,0.2594543]
[1729828471106,0.17408596,68039.0,68038.0,0.25945422]
[1729828471294,0.17408596,68039.0,68038.0,0.25944542]
[1729828473404,0.17408596,68039.0,68038.0,0.17143883]
[1729828474004,0.17408596,68039.0,68038.0,0.28031851]
[1729828474505,0.17408596,68039.0,68038.0,0.08011894]
[1729828474696,0.17408596,68039.0,68038.0,0.28039601]
[1729828477308,0.17408596,68039.0,68038.0,0.5097445]
[1729828478206,0.17408596,68039.0,68038.0,0.40696601]
[1729828479915,0.17408596,68039.0,68038.0,0.28039601]
[1729828482813,0.17408596,68039.0,68038.0,0.28039595]
[1729828485304,0.17408596,68039.0,68038.0,0.17148775]
[1729828485709,0.17408596,68039.0,68038.0,0.17171298]
[1729828486102,0.17408596,68039.0,68038.0,0.28088204]
[1729828486308,0.17358596,68039.0,68038.0,0.17171298]
[1729828488414,0.17358596,68039.0,68038.0,0.28092488]
[1729828488615,0.17358596,68039.0,68038.0,0.2809135]
[1729828489019,0.17358596,68039.0,68038.0,0.17171298]
[1729828489318,0.17358596,68039.0,68038.0,0.28084427]
[1729828489519,0.17358596,68039.0,68038.0,0.28089293]
[1729828490017,0.17358596,68039.0,68038.0,0.28085295]
[1729828491818,0.17358596,68039.0,68038.0,0.17171298]
[1729828492115,0.17358596,68039.0,68038.0,0.09819198]
[1729828492419,0.17358596,68039.0,68038.0,0.0935941]
[1729828492924,0.17358596,68039.0,68038.0,0.09819209]
[1729828493519,0.17358596,68039.0,68038.0,0.0935941]
[1729828494412,0.17358596,68039.0,68038.0,0.20730073]
[1729828495122,0.17358596,68039.0,68038.0,0.28082173]
[1729828497518,0.17358596,68039.0,68038.0,0.28082161]
[1729828498321,0.17358596,68039.0,68038.0,0.20730061]
[1729828499818,0.17358596,68039.0,68038.0,0.0935941]
[1729828500019,0.17358596,68039.0,68038.0,0.2028838]
[1729828500220,0.17358596,68039.0,68038.0,0.09361044]
[1729828500516,0.17358596,68039.0,68038.0,0.20280658]
[1729828501737,0.12355298,68039.0,68038.0,0.20280658]
[1729828503025,0.12355298,68039.0,68038.0,0.09361044]
[1729828505136,0.12355298,68039.0,68038.0,0.18186721]
[1729828505431,0.12355298,68039.0,68038.0,0.09361044]
[1729828508326,0.12355298,68039.0,68038.0,0.09402514]
[1729828510234,0.12355298,68039.0,68038.0,0.2082978]
[1729828512222,0.12355298,68039.0,68038.0,0.20829769]
[1729828512939,0.07352,68039.0,68038.0,0.20829769]
[1729828513128,0.07352,68039.0,68038.0,0.28181869]
[1729828513721,0.07352,68039.0,68038.0,0.51206228]
[1729828513722,0.12355298,68039.0,68038.0,0.51206228]
[1729828513928,0.12355298,68039.0,68038.0,0.4090953]
[1729828517838,0.12355298,68039.0,68038.0,0.08011894]
[1729828518026,0.12355298,68039.0,68038.0,0.40993371]
[1729828519533,0.12355298,68039.0,68038.0,0.40533577]
[1729828519737,0.12355298,68039.0,68038.0,0.4099337]
[1729828520937,0.12355298,68039.0,68038.0,0.08011893]
[1729828521134,0.12355298,68039.0,68038.0,0.4100801]
[1729828522430,0.07352,68039.0,68038.0,0.4100801]
[1729828522629,0.3608,68042.0,68038.0,0.4100801]
[1729828522630,0.434317,68042.0,68038.0,0.3365591]
[1729828522826,0.434317,68042.0,68041.0,0.073518]
[1729828523027,0.434317,68042.0,68041.0,0.4080771]
[1729828523731,0.434317,68042.0,68041.0,0.3345591]
[1729828524940,0.434317,68042.0,68041.0,0.43748953]
[1729828525334,0.434317,68042.0,68041.0,0.20685897]
[1729828526845,0.434317,68042.0,68041.0,0.20226104]
[1729828527138,0.434317,68042.0,68041.0,0.20685874]
[1729828527531,0.434317,68042.0,68041.0,0.0966662]
[1729828527735,0.434317,68042.0,68041.0,0.20640833]
[1729828530550,0.434317,68042.0,68041.0,0.20181063]
[1729828530752,0.434317,68042.0,68041.0,0.20640833]
[1729828531141,0.073517,68042.0,68041.0,0.20640833]
[1729828531449,0.073517,68042.0,68041.0,0.20181063]
[1729828532242,0.073517,68042.0,68041.0,0.20640832]
[1729828533939,0.434317,68042.0,68041.0,0.20640832]
[1729828534143,0.434317,68042.0,68041.0,0.20181063]
[1729828534337,0.464317,68042.0,68041.0,0.20181063]
[1729828534739,0.464317,68042.0,68041.0,0.0920685]
[1729828535439,0.464317,68042.0,68041.0,0.18028277]
[1729828536148,0.51434998,68042.0,68041.0,0.18028277]
[1729828537148,0.51434998,68042.0,68041.0,0.18066978]
[1729828539349,0.51434998,68042.0,68041.0,0.09245551]
[1729828539557,0.52848477,68042.0,68041.0,0.09245551]
[1729828540852,0.47845179,68042.0,68041.0,0.09245551]
[1729828541051,0.52848477,68042.0,68041.0,0.09245551]
[1729828542258,0.073519,68040.0,68039.0,0.05877704]
[1729828545149,0.073521,68038.0,68037.0,0.05877704]
[1729828545346,0.12355398,68038.0,68037.0,0.05877704]
[1729828546046,0.12355398,68038.0,68033.0,0.0734713]
[1729828546047,0.073525,68034.0,68033.0,0.0734713]
[1729828546357,0.48435798,68034.0,68033.0,0.16606962]
[1729828546547,0.48435798,68034.0,68033.0,0.17802536]
[1729828546751,0.48435798,68034.0,68033.0,0.17800626]
[1729828546953,0.48435798,68034.0,68033.0,0.0734713]
[1729828547158,0.12355898,68033.0,68032.0,0.1044713]
[1729828547349,0.12355898,68033.0,68032.0,0.13558085]
[1729828547947,0.12355898,68033.0,68032.0,0.13553499]
[1729828548757,0.12355898,68033.0,68032.0,0.13853499]
[1729828549052,0.17359196,68033.0,68032.0,0.24882395]
[1729828549854,0.12455898,68033.0,68032.0,0.25382395]
[1729828551758,0.12455898,68033.0,68032.0,0.2538677]
[1729828551952,0.12455898,68033.0,68032.0,0.24191173]
[1729828552159,0.12455898,68033.0,68032.0,0.25386753]
[1729828552554,0.17459196,68033.0,68032.0,0.25386753]
[1729828559367,0.17459196,68033.0,68032.0,0.25386752]
[1729828559562,0.12455898,68033.0,68032.0,0.25386752]
[1729828560563,0.17459196,68033.0,68032.0,0.25386752]
[1729828562864,0.17459196,68033.0,68032.0,0.14352663]
[1729828564670,0.17459196,68033.0,68032.0,0.14371951]
[1729828567571,0.17459196,68033.0,68032.0,0.25429558]
[1729828569566,0.17459196,68033.0,68032.0,0.25430351]
[1729828571477,0.17459196,68033.0,68032.0,0.35723394]
[1729828571670,0.17459196,68033.0,68032.0,0.34527815]
[1729828571871,0.17459196,68033.0,68032.0,0.357234]
[1729828572070,0.17459196,68033.0,68032.0,0.48561694]
[1729828572274,0.17459196,68033.0,68032.0,0.38268651]
[1729828579076,0.17459196,68033.0,68032.0,0.14372559]
[1729828579573,0.17459196,68033.0,68032.0,0.14373047]
[1729828581080,0.17459196,68033.0,68032.0,0.039]
[1729828581275,0.17459196,68033.0,68032.0,0.13196455]
[1729828581476,0.17459196,68033.0,68032.0,0.04359843]
[1729828581681,0.17459196,68033.0,68032.0,0.039]
[1729828582581,0.17459196,68033.0,68032.0,0.037]
[1729828582773,0.17359196,68033.0,68032.0,0.032]
[1729828582977,0.17359196,68033.0,68032.0,0.035]
[1729828586178,0.17359196,68033.0,68032.0,0.09383202]
[1729828586688,0.17359196,68033.0,68032.0,0.035]
[1729828587382,0.17359196,68033.0,68032.0,0.23900042]
[1729828589085,0.17359196,68033.0,68032.0,0.23900627]
[1729828591191,0.17359196,68033.0,68032.0,0.12807018]
[1729828592298,0.17359196,68033.0,68032.0,0.12707018]
[1729828593079,0.17359196,68033.0,68032.0,0.12407018]
[1729828596591,0.17359196,68033.0,68032.0,0.23512835]
[1729828596804,0.073526,68033.0,68032.0,0.23512835]
[1729828596985,0.17359196,68033.0,68032.0,0.23512835]
[1729828598994,0.17359196,68033.0,68032.0,0.12407018]
[1729828599596,0.17359196,68033.0,68032.0,0.23518259]
[1729828603195,0.17359196,68033.0,68032.0,0.12407018]
[1729828603398,0.17359196,68033.0,68032.0,0.12411513]